bitfinex/quotes_SOLUSD_20250226
["timestamp","ask_amount","ask_price","bid_price","bid_amount"]
[1740583136299,0.03,140.07,140.06,20.0]
[1740583136790,0.03,140.07,140.04,1.49888254]
[1740583136987,0.03,140.07,140.03,137.69900326]
[1740583138314,0.03,140.07,140.04,19.21829514]
[1740583138513,0.03,140.07,140.06,39.21829514]
[1740583139129,0.03,140.07,140.06,258.31829514]
[1740583139292,2.29526782,140.14,140.07,19.21829514]
[1740583139492,2.91876536,140.17,140.08,10.33831388]
[1740583139493,3.56312801,140.16,140.08,10.33831388]
[1740583139895,2.91876536,140.17,140.09,19.21829514]
[1740583140090,2.91876536,140.17,140.09,238.31829514]
[1740583140298,2.91876536,140.17,140.09,219.1]
[1740583140592,6.48997984,140.17,140.09,219.1]
[1740583140794,0.03,140.17,140.1,0.56864628]
[1740583140989,0.03,140.17,140.12,0.56864628]
[1740583141208,0.03,140.17,140.12,138.26646316]
[1740583141709,0.03,140.17,140.11,18.64964886]
[1740583141710,0.03,140.17,140.09,219.1]
[1740583141918,3.52824389,140.16,140.03,219.1]
[1740583142088,1.0,140.08,140.0,82.9]
[1740583142290,3.56369463,140.04,139.99,0.063]
[1740583143488,6.5905,140.11,139.99,156.263]
[1740583143698,3.54955004,140.06,140.0,1.49914071]
[1740583143901,3.54955004,140.06,139.99,136.263]
[1740583144094,3.54955004,140.06,139.99,0.063]
[1740583144297,6.5905,140.11,140.01,19.21829514]
[1740583144619,3.59829676,140.09,140.04,20.0]
[1740583144792,3.59829676,140.09,140.04,156.2]
[1740583145302,6.5905,140.11,140.05,1.49883934]
[1740583145497,1.571,140.13,140.05,137.69883934]
[1740583145712,6.507,140.15,140.05,137.69883934]
[1740583146308,3.61971627,140.11,140.05,137.69883934]
[1740583146500,6.507,140.15,140.05,137.69883934]
[1740583147100,3.56706975,140.12,140.05,136.2]
[1740583147295,3.56706975,140.12,140.01,136.2]
[1740583147552,1.6019,140.08,139.99,0.063]
[1740583147815,3.64800929,140.06,139.99,136.263]
[1740583148022,9.70290929,140.06,139.99,136.263]
[1740583148225,9.70290929,140.06,139.99,0.063]
[1740583148728,3.6046744,140.02,139.99,0.063]
[1740583148911,3.6046744,140.02,139.97,10.56451807]
[1740583149802,3.6046744,140.02,139.94,136.2]
[1740583149995,3.6046744,140.02,139.95,20.0]
[1740583150199,3.6046744,140.02,139.93,0.14216157]
[1740583150200,3.6046744,140.02,139.94,19.21829514]
[1740583150729,3.52152574,140.05,139.97,20.0]
[1740583150902,3.52152574,140.05,139.98,8.84]
[1740583151101,6.0549,140.06,140.01,20.0]
[1740583151505,120.3,140.21,140.05,1.0]
[1740583151706,12.02957026,140.2,140.07,1.0]
[1740583151923,1.31585034,140.19,140.08,1.0]
[1740583152224,3.57530591,140.11,140.08,136.2]
[1740583153317,3.64019538,140.14,140.12,1.0]
[1740583153519,3.64019538,140.14,140.12,136.2]
[1740583153827,3.63589678,140.15,140.12,137.2]
[1740583154406,3.63589678,140.15,140.12,136.2]
[1740583154608,6.2686,140.2,140.12,137.2]
[1740583154805,9.1022066,140.2,140.14,1.0]
[1740583155007,1.5668,140.23,140.17,1.0]
[1740583155208,3.53738726,140.2,140.17,137.2]
[1740583156105,9.1263056,140.25,140.18,2.0]
[1740583156308,9.1263056,140.25,140.18,138.2]
[1740583156522,9.1263056,140.25,140.18,137.2]
[1740583156731,9.1263056,140.25,140.18,138.2]
[1740583157104,9.1263056,140.25,140.18,137.2]
[1740583157629,9.1263056,140.25,140.19,1.0]
[1740583158016,3.51945861,140.22,140.19,1.0]
[1740583158342,3.51945861,140.22,140.19,136.2]
[1740583159333,3.51945861,140.22,140.15,132.8453654]
[1740583159715,3.51945861,140.22,140.18,0.063]
[1740583160714,3.51945861,140.22,140.12,132.8453654]
[1740583160927,3.51945861,140.22,140.12,133.8453654]
[1740583161125,3.51945861,140.22,140.12,134.8453654]
[1740583161339,3.51945861,140.22,140.13,1.0]
[1740583161539,3.5200291,140.16,140.13,1.0]
[1740583161846,3.5200291,140.16,140.13,133.8453654]
[1740583162227,3.5783741,140.17,140.14,1.0]
[1740583162758,4.59945378,140.28,140.18,1.0]
[1740583162932,3.60589126,140.21,140.19,1.0]
[1740583163128,3.60589126,140.21,140.19,132.8453654]
[1740583163945,3.60589126,140.21,140.13,79.3994512]
[1740583164246,5.47861236,140.21,140.12,69.5794512]
[1740583164590,3.60589126,140.21,140.13,1.0]
[1740583165024,3.60589126,140.21,140.12,70.5794512]
[1740583165231,1.87277845,140.27,140.17,2.0]
[1740583165435,3.58906472,140.22,140.2,1.0]
[1740583165735,3.58906472,140.22,140.2,69.5794512]
[1740583166031,3.58906472,140.22,140.17,78.3994512]
[1740583166845,3.58906472,140.22,140.17,79.3994512]
[1740583167351,3.58906472,140.22,140.17,78.3994512]
[1740583167650,3.58906472,140.22,140.17,79.3994512]
[1740583168668,3.58906472,140.22,140.15,154.4794512]
[1740583168955,3.58906472,140.22,140.15,153.4794512]
[1740583169185,3.59571055,140.18,140.15,82.9]
[1740583169760,3.58906472,140.22,140.17,1.0]
[1740583169935,3.58906472,140.22,140.16,1.0]
[1740583170135,3.58906472,140.22,140.17,153.4794512]
[1740583170341,3.58906472,140.22,140.17,152.4794512]
[1740583170751,3.58906472,140.22,140.17,153.4794512]
[1740583170968,3.58906472,140.22,140.18,1.0]
[1740583171167,3.58906472,140.22,140.18,70.5794512]
[1740583171470,3.58906472,140.22,140.2,1.0]
[1740583171669,2.93715378,140.28,140.2,70.5794512]
[1740583171851,3.52805606,140.23,140.2,70.5794512]
[1740583172566,3.52805606,140.23,140.2,69.5794512]
[1740583173060,3.52805606,140.23,140.2,70.5794512]
[1740583173462,3.52805606,140.23,140.21,1.0]
[1740583174170,9.38436621,140.29,140.22,1.0]
[1740583174649,3.49258454,140.24,140.22,1.0]
[1740583174851,3.49258454,140.24,140.22,70.5794512]
[1740583175153,3.49258454,140.24,140.22,69.5794512]
[1740583175553,3.49258454,140.24,140.12,1.0]
[1740583175554,3.49258454,140.24,140.17,1.0]
[1740583175734,3.49258454,140.24,140.15,2.0]
[1740583176139,6.5358,140.25,140.16,1.063]
[1740583176664,6.5358,140.25,140.17,1.0]
[1740583176960,3.66249113,140.21,140.19,1.0]
[1740583177139,3.66249113,140.21,140.2,1.0]
[1740583177755,6.3515,140.29,140.2,1.0]
[1740583177956,3.50499542,140.23,140.2,1.0]
[1740583178673,3.50499542,140.23,140.19,167.31129667]
[1740583178960,3.50499542,140.23,140.16,168.37429667]
[1740583179167,3.50499542,140.23,140.16,0.063]
[1740583179857,5.37765261,140.23,140.16,0.063]
[1740583180244,5.37765261,140.23,140.11,6.0142]
[1740583180245,6.4457,140.21,140.1,2.0]
[1740583180438,6.4457,140.21,140.13,1.0]
[1740583180647,6.4457,140.21,140.12,1.0]
[1740583180861,6.4457,140.21,140.13,1.0]
[1740583181567,2.83045034,140.23,140.14,1.0]
[1740583182238,2.83045034,140.23,140.12,1.0]
[1740583182239,3.66754023,140.17,140.13,1.0]
[1740583182638,3.66754023,140.17,140.09,136.2]
[1740583182943,3.66754023,140.17,140.11,1.0]
[1740583183386,3.66754023,140.17,140.1,1.0]
[1740583183953,3.66754023,140.17,140.09,1.0]
[1740583184284,3.66754023,140.17,140.1,1.0]
[1740583184476,3.66754023,140.17,140.12,1.0]
[1740583184674,3.66754023,140.17,140.13,1.0]
[1740583184873,3.66754023,140.17,140.12,1.0]
[1740583185181,3.66754023,140.17,140.08,288.51129667]
[1740583185389,3.66754023,140.17,140.08,121.2]
[1740583185687,5.54100834,140.17,140.08,121.2]
[1740583185982,3.66754023,140.17,140.09,1.0]
[1740583186277,3.66754023,140.17,140.08,121.2]
[1740583186451,3.66754023,140.17,140.09,1.0]
[1740583186651,3.6200744,140.13,140.09,1.0]
[1740583186972,3.6200744,140.13,140.1,1.0]
[1740583187289,3.6200744,140.13,140.08,288.51129667]
[1740583187966,3.6200744,140.13,140.08,287.51129667]
[1740583188155,3.6200744,140.13,140.08,288.51129667]
[1740583188659,3.6200744,140.13,140.1,1.0]
[1740583188856,3.6200744,140.13,140.08,288.51129667]
[1740583189383,3.6200744,140.13,140.09,1.0]
[1740583189597,3.66754023,140.17,140.11,1.0]
[1740583190478,3.66754023,140.17,140.1,1.0]
[1740583191083,3.66754023,140.17,140.08,121.2]
[1740583191582,21.87341684,140.18,140.08,121.2]
[1740583192101,3.62238351,140.12,140.06,136.2]
[1740583192266,1.87379506,140.11,140.03,1.063]
[1740583192578,1.87379506,140.11,140.03,0.063]
[1740583193288,3.66429967,140.05,140.03,0.063]
[1740583193588,3.66429967,140.05,140.03,0.0001]
[1740583195074,3.66429967,140.05,140.02,0.0001]
[1740583195270,3.66429967,140.05,140.01,0.0001]
[1740583196686,3.66429967,140.05,140.02,1.0]
[1740583196875,3.66429967,140.05,140.03,0.063]
[1740583197284,3.66429967,140.05,140.01,0.0001]
[1740583197577,3.66429967,140.05,139.98,1.0]
[1740583197890,18.64964886,140.07,139.97,121.24]
[1740583198185,3.64462622,140.0,139.97,121.24]
[1740583198363,3.64462622,140.0,139.95,168.31129667]
[1740583198565,3.64462622,140.0,139.96,1.0]
[1740583199061,8.8,140.1,140.01,1.0]
[1740583199263,8.8,140.1,139.97,1.0]
[1740583199264,10.67416878,140.1,140.0,1.0]
[1740583199471,10.67416878,140.1,140.01,1.0]
[1740583199673,8.8,140.1,140.02,1.0]
[1740583199877,3.54504404,140.04,140.01,1.0]
[1740583200268,3.54504404,140.04,140.0,1.0]
[1740583200472,11.71537611,140.1,140.04,1.0]
[1740583200800,3.53429062,140.06,140.01,1.0]
[1740583200999,5.4084594,140.06,139.98,136.2]
[1740583201299,0.28432314,140.05,139.95,137.2]
[1740583201466,1.87416878,140.04,139.95,1.0]
[1740583201923,0.14216157,140.02,139.93,136.2]
[1740583202202,0.14216157,140.02,139.91,1.0]
[1740583202203,3.54580587,139.97,139.91,1.0]
[1740583202379,3.54580587,139.97,139.89,130.84451807]
[1740583202380,3.54580587,139.97,139.89,132.84451807]
[1740583202704,1.87416878,139.96,139.89,11.56451807]
[1740583203072,1.87416878,139.96,139.89,10.56451807]
[1740583203581,3.540428,139.93,139.89,10.56451807]
[1740583204569,5.41459678,139.93,139.89,10.56451807]
[1740583204787,5.41459678,139.93,139.87,0.063]
[1740583205102,19.07613357,139.92,139.82,1.0]
[1740583205281,20.42648471,139.9,139.81,1.0]
[1740583205470,3.62917209,139.87,139.8,10.56451807]
[1740583205689,1.87416878,139.86,139.8,4.67266704]
[1740583206120,4.71831751,139.86,139.8,4.67266704]
[1740583206272,4.71831751,139.86,139.79,13.00170319]
[1740583206273,0.14216157,139.85,139.79,13.00170319]
[1740583206473,21.87416878,139.84,139.79,13.00170319]
[1740583206674,3.58970897,139.81,139.77,25.98142959]
[1740583207073,3.58970897,139.81,139.77,11.6312038]
[1740583207993,5.46387775,139.81,139.77,9.8022038]
[1740583208309,1.87416878,139.82,139.77,9.8022038]
[1740583208879,1.87416878,139.82,139.77,1e-08]
[1740583209073,20.0,139.8,139.72,120.34]
[1740583209268,20.0,139.8,139.72,122.34]
[1740583209497,20.0,139.8,139.72,120.34]
[1740583209686,26.009,139.8,139.71,1.0]
[1740583210009,20.52381764,139.79,139.69,0.063]
[1740583210212,20.0,139.76,139.69,0.063]
[1740583210400,20.52381764,139.75,139.66,1.0]
[1740583210594,20.52381764,139.75,139.65,1.063]
[1740583210811,0.42648471,139.74,139.65,0.063]
[1740583211100,24.84494886,139.72,139.65,0.063]
[1740583211322,1.87416878,139.71,139.65,0.063]
[1740583211682,2.95945034,139.74,139.65,0.063]
[1740583211683,3.19001912,139.74,139.66,2.0]
[1740583212009,21.31585034,139.74,139.66,1.0]
[1740583212315,18.64964886,139.72,139.65,0.063]
[1740583212605,1.87416878,139.71,139.65,0.063]
[1740583213174,1.87416878,139.73,139.65,1.063]
[1740583213412,41.83966798,139.74,139.66,1.0]
[1740583213712,23.19001912,139.74,139.66,2.0]
[1740583214485,1.31585034,139.74,139.7,1.0]
[1740583214685,6.1624,139.77,139.7,1.0]
[1740583214995,6.1624,139.77,139.71,1.0]
[1740583215307,6.1624,139.77,139.7,1.0]
[1740583215489,3.41406878,139.79,139.7,1.0]
[1740583215811,18.64964886,139.8,139.71,1.0]
[1740583216025,18.64964886,139.8,139.7,1.0]
[1740583216316,0.14216157,139.77,139.68,1.0]
[1740583216484,3.19001912,139.79,139.7,1.0]
[1740583216680,18.64964886,139.77,139.68,135.203]
[1740583217089,3.19001912,139.79,139.68,135.203]
[1740583217297,4.19001912,139.79,139.68,135.203]
[1740583217485,1.31585034,139.79,139.68,135.203]
[1740583218004,1.31585034,139.79,139.71,20.0]
[1740583218208,1.31585034,139.79,139.68,145.02]
[1740583218392,1.31585034,139.79,139.68,8.82]
[1740583218589,39.64964886,139.78,139.66,136.2]
[1740583218902,18.64964886,139.75,139.65,0.063]
[1740583219198,8.82,139.75,139.65,0.063]
[1740583219403,8.82,139.75,139.66,0.14216157]
[1740583219779,8.82,139.75,139.69,20.0]
[1740583219979,1.31585034,139.77,139.69,20.0]
[1740583220291,38.933972,139.76,139.65,136.263]
[1740583220495,40.24982234,139.76,139.65,0.063]
[1740583220691,39.9654992,139.76,139.65,0.063]
[1740583220899,21.31585034,139.76,139.65,0.063]
[1740583221104,21.31585034,139.76,139.65,136.40516157]
[1740583221305,18.79181043,139.75,139.65,0.063]
[1740583221626,20.66597921,139.75,139.65,0.063]
[1740583222900,1.87416878,139.75,139.65,0.063]
[1740583223103,90.983,139.79,139.66,0.14216157]
[1740583223427,0.14216157,139.75,139.66,136.2]
[1740583223606,0.14216157,139.75,139.65,0.063]
[1740583223809,16.71384569,139.76,139.65,0.063]
[1740583224127,16.71384569,139.76,139.65,18.71264886]
[1740583224299,16.71384569,139.76,139.65,0.063]
[1740583224513,17.02969603,139.76,139.65,0.063]
[1740583224726,18.02969603,139.76,139.65,0.063]
[1740583225211,6.56752314,139.73,139.65,0.063]
[1740583225524,16.70337348,139.73,139.65,0.063]
[1740583226100,16.41905034,139.73,139.65,0.063]
[1740583228010,17.41905034,139.73,139.65,0.063]
[1740583228214,16.41905034,139.73,139.65,0.063]
[1740583228543,1.31585034,139.73,139.65,38.996972]
[1740583228729,15.71384569,139.76,139.65,47.816972]
[1740583229110,15.1032,139.77,139.65,47.53264886]
[1740583229411,20.0,139.74,139.65,0.063]
[1740583229613,21.31585034,139.74,139.65,0.063]
[1740583229817,1.31585034,139.73,139.65,0.063]
[1740583231125,1.31585034,139.73,139.65,18.996972]
[1740583231425,1.31585034,139.73,139.66,6.3482]
[1740583231633,1.31585034,139.73,139.65,18.996972]
[1740583231634,20.0,139.74,139.65,0.063]
[1740583231805,0.42648471,139.73,139.65,0.063]
[1740583232001,1.74233505,139.73,139.65,0.063]
[1740583232207,19.07613357,139.71,139.61,0.063]
[1740583232522,19.07613357,139.69,139.61,0.063]
[1740583232830,20.39198391,139.69,139.61,0.063]
[1740583233608,18.933972,139.67,139.56,120.643]
[1740583233917,1.31585034,139.66,139.56,120.643]
[1740583234124,1.31585034,139.66,139.57,18.64964886]
[1740583234322,6.6091,139.68,139.57,18.64964886]
[1740583234505,0.28432314,139.67,139.56,120.643]
[1740583234710,22.24982234,139.67,139.56,120.643]
[1740583234930,1.31585034,139.66,139.56,0.063]
[1740583235128,20.28432314,139.65,139.56,0.063]
[1740583235432,21.60017348,139.65,139.56,0.063]
[1740583235627,0.28432314,139.63,139.56,0.063]
[1740583235926,1.31585034,139.63,139.56,0.063]
[1740583236503,4.25295004,139.63,139.56,0.063]
[1740583236701,1.31585034,139.63,139.56,0.063]
[1740583238132,21.31585034,139.63,139.56,0.063]
[1740583238306,19.07613357,139.62,139.56,0.063]
[1740583238637,19.07613357,139.6,139.51,0.03]
[1740583238950,19.07613357,139.58,139.51,0.03]
[1740583239242,19.07613357,139.56,139.48,2.0251697]
[1740583239418,20.39198391,139.56,139.48,2.0251697]
[1740583239619,1.45801191,139.56,139.48,2.0251697]
[1740583239824,1.31585034,139.56,139.48,2.0251697]
[1740583240022,0.28432314,139.55,139.48,2.0251697]
[1740583240421,1.31585034,139.56,139.49,20.0]
[1740583241336,6.1293,139.59,139.5,20.0]
[1740583241337,20.0,139.59,139.5,20.0]
[1740583241923,91.92,139.62,139.5,20.0]
[1740583241924,89.92,139.62,139.5,20.0]
[1740583242172,1.31585034,139.62,139.53,20.0]
[1740583242445,19.07613357,139.6,139.49,136.2]
[1740583242734,20.39198391,139.6,139.48,2.0251697]
[1740583242953,0.14216157,139.57,139.48,2.0251697]
[1740583243445,1.31585034,139.59,139.5,20.0]
[1740583243651,0.14216157,139.58,139.5,20.0]
[1740583243964,0.14216157,139.58,139.48,2.0251697]
[1740583243965,19.07613357,139.58,139.48,2.0251697]
[1740583244144,1.31585034,139.59,139.49,18.933972]
[1740583245027,1.31585034,139.59,139.49,155.133972]
[1740583245648,1.31585034,139.59,139.51,0.28432314]
[1740583245859,1.31585034,139.59,139.51,18.933972]
[1740583246065,36.80791414,139.63,139.53,20.0]
[1740583246223,36.80791414,139.63,139.51,155.133972]
[1740583246652,0.28432314,139.62,139.52,8.82]
[1740583247186,0.14216157,139.62,139.52,8.82]
[1740583247333,0.28432314,139.62,139.52,8.82]
[1740583247525,0.14216157,139.62,139.52,8.82]
[1740583247730,0.28432314,139.62,139.52,8.82]
[1740583248449,18.933972,139.62,139.52,8.82]
[1740583248764,9.33826528,139.63,139.53,18.933972]
[1740583249273,0.14216157,139.59,139.48,138.2251697]
[1740583249747,20.0,139.55,139.48,2.0251697]
[1740583253058,1.31585034,139.58,139.48,2.0251697]
[1740583253258,20.0,139.57,139.48,2.0251697]
[1740583253560,38.933972,139.56,139.48,2.0251697]
[1740583253761,21.31585034,139.56,139.48,2.0251697]
[1740583253963,20.0,139.56,139.48,2.0251697]
[1740583254161,8.8,139.6,139.49,18.933972]
[1740583254364,0.14216157,139.61,139.51,18.933972]
[1740583254676,20.0,139.6,139.51,18.933972]
[1740583255157,20.0,139.6,139.5,136.2]
[1740583255541,20.0,139.6,139.51,25.574972]
[1740583256253,0.28432314,139.59,139.51,6.641]
[1740583256658,20.0,139.6,139.51,6.641]
[1740583257246,20.0,139.6,139.48,2.0251697]
[1740583257247,20.0,139.56,139.48,2.0251697]
[1740583257649,0.28432314,139.55,139.48,2.0251697]
[1740583257850,20.0,139.52,139.48,2.0251697]
[1740583258033,20.0,139.56,139.48,2.0251697]
[1740583258236,0.28432314,139.55,139.5,0.03]
[1740583258440,20.0,139.56,139.5,0.03]
[1740583258641,20.0,139.55,139.5,0.03]
[1740583259255,0.28432314,139.54,139.48,2.0251697]
[1740583259873,20.0,139.55,139.48,2.0251697]
[1740583261770,1.31585034,139.6,139.51,18.933972]
[1740583261945,1.31585034,139.6,139.52,8.8]
[1740583262675,2.90196528,139.63,139.55,18.933972]
[1740583262904,87.7655,139.67,139.55,155.133972]
[1740583262905,6.6655,139.67,139.55,155.133972]
[1740583263172,20.0,139.64,139.55,155.133972]
[1740583263473,20.0,139.62,139.54,6.3268]
[1740583263853,0.28432314,139.61,139.54,6.3268]
[1740583264053,0.28432314,139.61,139.53,10.4632]
[1740583264054,18.933972,139.61,139.53,10.4632]
[1740583264371,20.0,139.57,139.5,6.421]
[1740583264763,0.14216157,139.54,139.48,3.6441697]
[1740583264970,1.31585034,139.57,139.48,3.6441697]
[1740583265158,20.0,139.57,139.48,139.8441697]
[1740583265871,20.0,139.57,139.49,18.79181043]
[1740583266365,8.8,139.6,139.53,0.28432314]
[1740583266756,20.0,139.61,139.53,0.28432314]
[1740583266956,0.14216157,139.6,139.51,136.2]
[1740583267158,0.14216157,139.56,139.48,3.6441697]
[1740583267358,20.0,139.55,139.48,3.6441697]
[1740583267564,0.28432314,139.54,139.48,2.0251697]
[1740583267770,18.933972,139.54,139.48,2.0251697]
[1740583270280,0.14216157,139.56,139.48,2.0251697]
[1740583270453,20.0,139.54,139.48,2.0251697]
[1740583270782,20.0,139.53,139.48,2.0251697]
[1740583273275,1.31585034,139.56,139.48,2.0251697]
[1740583273669,20.0,139.55,139.48,2.0251697]
[1740583273884,20.0,139.54,139.48,2.0251697]
[1740583274067,91.4946,139.61,139.49,19.21829514]
[1740583274257,10.3946,139.61,139.51,18.933972]
[1740583274453,8.8,139.61,139.51,18.933972]
[1740583274664,6.3911,139.62,139.51,18.933972]
[1740583274980,20.0,139.61,139.51,18.933972]
[1740583275181,20.0,139.61,139.53,18.933972]
[1740583275379,81.1,139.63,139.5,6.1541]
[1740583275595,20.0,139.55,139.48,2.0251697]
[1740583275892,0.14216157,139.54,139.48,2.0251697]
[1740583276087,0.14216157,139.53,139.48,2.0251697]
[1740583276392,0.14216157,139.52,139.48,2.0251697]
[1740583277087,0.14216157,139.5,139.48,2.0251697]
[1740583277269,20.0,139.49,139.48,2.0251697]
[1740583277807,20.28432314,139.49,139.48,2.0251697]
[1740583278109,1.31585034,139.52,139.48,2.0251697]
[1740583278265,0.14216157,139.5,139.48,2.0251697]
[1740583278467,38.79181043,139.49,139.48,2.0251697]
[1740583278979,41.75471573,139.49,139.48,2.0251697]
[1740583279493,2.9629053,139.49,139.48,2.0251697]
[1740583279674,21.31585034,139.5,139.48,2.0251697]
[1740583280279,24.21912896,139.5,139.48,2.0251697]
[1740583281990,4.21912896,139.5,139.48,2.0251697]
[1740583282177,6.6423,139.56,139.48,2.0251697]
[1740583282368,9.55657479,139.56,139.48,2.0251697]
[1740583282692,0.14216157,139.54,139.48,2.0251697]
[1740583283271,18.933972,139.54,139.48,2.0251697]
[1740583283492,0.063,139.5,139.48,2.0251697]
[1740583285600,0.063,139.5,139.48,8.5730697]
[1740583286394,0.063,139.5,139.48,10.2350697]
[1740583286779,0.063,139.5,139.49,0.56864628]
[1740583286980,0.063,139.6,139.49,0.28432314]
[1740583287182,0.20516157,139.6,139.49,163.913972]
[1740583287501,0.063,139.6,139.52,0.28432314]
[1740583287687,0.063,139.6,139.53,18.64964886]
[1740583288072,0.063,139.6,139.54,0.28432314]
[1740583288275,2.95403506,139.6,139.55,6.6179]
[1740583288468,0.063,139.6,139.55,6.6179]
[1740583288687,0.063,139.6,139.56,20.497872]
[1740583288895,0.063,139.6,139.56,22.86210735]
[1740583289071,0.063,139.6,139.57,2.36423535]
[1740583289885,0.063,139.6,139.58,18.933972]
[1740583290701,0.063,139.6,139.57,136.2]
[1740583291297,0.063,139.6,139.57,18.933972]
[1740583291500,0.063,139.6,139.56,137.7639]
[1740583292784,0.063,139.6,139.58,0.28432314]
[1740583292986,0.063,139.6,139.57,18.933972]
[1740583293188,0.063,139.6,139.56,137.7639]
[1740583293902,0.063,139.6,139.55,6.6179]
[1740583294073,20.063,139.6,139.52,1.5639]
[1740583294279,20.063,139.6,139.51,6.6179]
[1740583294280,20.28432314,139.59,139.51,6.6179]
[1740583294473,20.28432314,139.59,139.48,10.8051697]
[1740583294897,0.28432314,139.57,139.48,10.8051697]
[1740583295272,20.0,139.55,139.48,10.8051697]
[1740583295472,20.0,139.55,139.48,2.0251697]
[1740583295683,20.0,139.55,139.5,0.03]
[1740583297275,20.0,139.56,139.5,0.03]
[1740583297479,10.09585034,139.59,139.5,0.03]
[1740583297913,21.31585034,139.59,139.5,0.03]
[1740583298121,0.063,139.6,139.51,18.933972]
[1740583298607,0.063,139.6,139.51,155.133972]
[1740583299603,20.0,139.59,139.51,155.133972]
[1740583300307,20.0,139.59,139.5,0.03]
[1740583300504,20.0,139.59,139.5,0.31432314]
[1740583300680,20.0,139.59,139.5,0.03]
[1740583300981,20.0,139.59,139.5,18.963972]
[1740583301173,0.063,139.6,139.51,0.56864628]
[1740583301368,0.063,139.6,139.51,0.42648471]
[1740583301369,20.0,139.59,139.51,0.42648471]
[1740583301576,20.0,139.59,139.5,0.31432314]
[1740583302713,20.0,139.59,139.51,0.28432314]
[1740583303019,20.0,139.59,139.5,0.03]
[1740583304010,20.0,139.59,139.5,0.31432314]
[1740583304181,20.0,139.59,139.51,0.14216157]
[1740583304382,0.063,139.6,139.53,18.79181043]
[1740583304809,0.063,139.6,139.52,0.56864628]
[1740583305107,0.063,139.6,139.54,0.28432314]
[1740583306311,0.063,139.6,139.58,18.933972]
[1740583307695,0.063,139.6,139.57,136.2]
[1740583308112,0.063,139.6,139.51,6.5428]
[1740583308300,20.0,139.58,139.51,6.5428]
[1740583309416,20.063,139.6,139.51,18.64964886]
[1740583309810,0.28432314,139.59,139.5,0.03]
[1740583310015,6.1769,139.6,139.51,18.64964886]
[1740583310218,0.063,139.6,139.52,0.56864628]
[1740583310514,0.063,139.6,139.53,18.64964886]
[1740583311612,0.063,139.6,139.54,0.28432314]
[1740583311792,0.063,139.6,139.56,18.933972]
[1740583311991,0.063,139.6,139.54,136.2]
[1740583312814,0.063,139.6,139.55,18.933972]
[1740583313313,0.063,139.6,139.56,0.28432314]
[1740583313820,0.063,139.6,139.56,136.48432314]
[1740583313994,0.063,139.6,139.59,0.28432314]
[1740583314596,0.063,139.6,139.59,164.80229653]
[1740583314820,0.063,139.6,139.59,164.29849514]
[1740583315004,6.401,139.73,139.63,0.28432314]
[1740583315204,82.6891,139.75,139.65,0.28432314]
[1740583315596,2.88151798,139.74,139.68,0.14216157]
[1740583315800,0.063,139.74,139.67,167.31129667]
[1740583315991,20.0,139.72,139.64,8.76]
[1740583316198,0.28432314,139.73,139.64,8.76]
[1740583316421,18.933972,139.72,139.62,167.31129667]
[1740583316623,20.0,139.69,139.62,167.31129667]
[1740583316804,20.0,139.69,139.61,136.2]
[1740583318954,20.512972,139.72,139.61,136.2]
[1740583319136,20.0,139.69,139.61,0.28432314]
[1740583319338,20.0,139.69,139.61,18.933972]
[1740583320261,20.0,139.7,139.63,0.28432314]
[1740583320548,0.063,139.74,139.69,0.28432314]
[1740583320734,0.063,139.74,139.71,0.28432314]
[1740583321416,0.063,139.74,139.73,0.56864628]
[1740583321616,0.063,139.74,139.73,31.67994295]
[1740583322035,0.063,139.74,139.73,31.11129667]
[1740583322452,0.063,139.74,139.73,31.67994295]
[1740583322639,0.063,139.74,139.73,50.32959181]